bitfinex/quotes_SOLUSD_20240705
["timestamp","ask_amount","ask_price","bid_price","bid_amount"]
[1720139953193,0.1,126.29,126.28,27.7161]
[1720139953407,0.1,126.29,126.28,47.8861]
[1720139953562,0.1,126.29,126.28,27.8861]
[1720139954197,0.1,126.39,126.34,27.7029]
[1720139954366,0.1,126.39,126.34,27.8729]
[1720139954573,0.1,126.39,126.34,19.7878]
[1720139954767,0.1,126.39,126.34,27.8729]
[1720139955087,0.1,126.39,126.34,20.17]
[1720139955286,0.1,126.39,126.38,27.6942]
[1720139955663,10.0,126.46,126.38,19.9516]
[1720139955865,10.0,126.46,126.39,20.17]
[1720139956165,10.0,126.46,126.4,7.9109]
[1720139956368,10.0,126.39,126.35,19.7853]
[1720139956568,130.027587,126.48,126.34,27.9148]
[1720139956569,10.0,126.42,126.41,7.9107]
[1720139957000,10.0,126.38,126.32,39.5814]
[1720139957163,10.0,126.38,126.3,7.917]
[1720139957367,10.0,126.38,126.33,7.9151]
[1720139957680,10.0,126.36,126.35,7.9145]
[1720139957995,10.0,126.36,126.26,39.63]
[1720139958199,10.0,126.38,126.37,7.9132]
[1720139958493,10.0,126.35,126.24,39.605]
[1720139958669,10.0,126.35,126.32,7.9158]
[1720139958869,10.0,126.35,126.23,6.1741]
[1720139959169,39.63,126.42,126.19,39.63]
[1720139959170,10.0,126.28,126.19,39.63]
[1720139959385,10.0,126.23,126.2,7.9233]
[1720139959594,10.0,126.21,126.19,19.8102]
[1720139959903,10.0,126.21,126.11,0.1]
[1720139960102,10.0,126.21,126.16,7.9262]
[1720139960402,10.0,126.14,126.13,27.7475]
[1720139960608,10.0,126.12,126.11,8.0289]
[1720139960982,10.0,126.14,126.13,27.7491]
[1720139961478,10.0,126.12,126.11,0.1]
[1720139961685,10.0,126.14,126.12,19.8218]
[1720139961877,39.63,126.26,126.11,0.1]
[1720139961878,10.0,126.17,126.11,0.1]
[1720139962082,10.0,126.19,126.11,0.1]
[1720139962296,10.0,126.19,126.12,19.8223]
[1720139962485,10.0,126.17,126.12,19.8223]
[1720139962686,100.0,126.25,126.16,7.9263]
[1720139962687,10.0,126.19,126.16,7.9263]
[1720139962992,15.0,126.35,126.24,7.9209]
[1720139963322,15.0,126.35,126.14,39.63]
[1720139963323,7.915,126.35,126.14,39.63]
[1720139963494,55.3376,126.38,126.24,19.8033]
[1720139963685,7.9138,126.37,126.28,7.9187]
[1720139963981,39.63,126.38,126.26,19.7998]
[1720139964176,39.63,126.38,126.18,39.63]
[1720139964177,44.63,126.42,126.27,3.70616558]
[1720139964381,44.63,126.42,126.32,7.9159]
[1720139964382,5.0,126.42,126.32,7.9159]
[1720139964594,5.0,126.42,126.37,7.9131]
[1720139965018,5.0,126.42,126.37,19.7831]
[1720139965733,5.0,126.42,126.38,0.17]
[1720139966011,5.0,126.42,126.4,19.7776]
[1720139966189,5.0,126.42,126.36,19.7833]
[1720139966383,5.0,126.42,126.37,3.70336731]
[1720139966594,5.0,126.42,126.41,27.6876]
[1720139966816,5.0,126.42,126.41,19.7769]
[1720139967013,5.0,126.42,126.38,3.53308773]
[1720139967695,5.0,126.42,126.38,11.44558773]
[1720139967900,5.0,126.42,126.38,3.53308773]
[1720139968094,5.0,126.42,126.39,19.7797]
[1720139968821,5.0,126.42,126.41,7.9107]
[1720139969227,5.0,126.42,126.39,27.6911]
[1720139969533,5.0,126.42,126.38,3.53308773]
[1720139969818,5.0,126.42,126.41,7.9107]
[1720139970039,30.027587,126.48,126.38,43.09528773]
[1720139970326,30.027587,126.48,126.45,19.7696]
[1720139970506,30.027587,126.48,126.47,7.907]
[1720139970892,19.7409,126.65,126.52,19.7595]
[1720139971090,7.8984,126.61,126.53,8.0726]
[1720139971310,7.8975,126.63,126.54,19.7551]
[1720139971517,16.2821,126.67,126.53,0.17]
[1720139971719,16.2821,126.67,126.58,7.9001]
[1720139971921,7.8954,126.66,126.58,7.9001]
[1720139972213,24.1766,126.67,126.58,7.9001]
[1720139972528,0.1,126.69,126.58,8.0701]
[1720139972829,0.1,126.69,126.64,7.8963]
[1720139973004,0.1,126.69,126.68,7.8939]
[1720139973319,0.1,126.69,126.66,19.7363]
[1720139973626,0.1,126.69,126.67,3.52499903]
[1720139973791,0.1,126.69,126.54,39.5108]
[1720139973992,0.1,126.69,126.55,3.69834158]
[1720139974199,0.1,126.69,126.64,19.7409]
[1720139974419,0.1,126.69,126.58,39.4994]
[1720139974725,0.1,126.69,126.59,3.52722669]
[1720139974927,7.8956,126.66,126.59,11.42662669]
[1720139975250,0.1,126.69,126.59,3.52722669]
[1720139975455,0.1,126.69,126.68,7.8939]
[1720139975749,0.1,126.69,126.67,19.7357]
[1720139976039,0.1,126.69,126.68,11.41862077]
[1720139976230,0.1,126.69,126.68,3.69472077]
[1720139976439,0.1,126.69,126.68,11.41862077]
[1720139976622,0.04693919,126.74,126.68,11.41862077]
[1720139976623,0.04693919,126.74,126.73,27.6176]
[1720139976825,0.04693919,126.74,126.73,27.7876]
[1720139977026,0.04693919,126.74,126.73,27.6176]
[1720139977232,0.04693919,126.74,126.68,3.52472077]
[1720139977421,0.04693919,126.74,126.73,8.0607]
[1720139977936,0.04693919,126.74,126.68,23.25872077]
[1720139978134,0.04693919,126.74,126.73,7.8907]
[1720139978339,0.04693919,126.74,126.73,8.0607]
[1720139978749,0.04693919,126.74,126.69,3.52444255]
[1720139978955,0.04693919,126.74,126.68,7.8935]
[1720139978956,0.04693919,126.74,126.72,7.8912]
[1720139979133,0.04693919,126.74,126.73,3.52333013]
[1720139979317,0.1,126.79,126.78,19.7191]
[1720139979521,0.1,126.89,126.81,7.8855]
[1720139979852,0.1,126.89,126.82,23.23332974]
[1720139980145,0.1,126.89,126.76,39.4437]
[1720139980146,0.1,126.89,126.83,3.52055213]
[1720139980349,0.1,126.89,126.73,19.8963]
[1720139980562,15.0,126.84,126.64,39.63]
[1720139980757,115.0,126.87,126.65,3.52555568]
[1720139980925,15.1,126.89,126.7,19.7316]
[1720139981127,7.8867,126.8,126.71,7.8916]
[1720139981326,15.0,126.78,126.65,3.52555568]
[1720139981625,39.63,126.78,126.65,3.52555568]
[1720139981854,0.17,126.77,126.62,7.8971]
[1720139982174,7.896,126.65,126.5,15.0]
[1720139982330,15.0,126.67,126.53,19.7572]
[1720139982530,15.0,126.66,126.52,7.9033]
[1720139982733,6.2385,126.65,126.51,0.1]
[1720139982931,6.4085,126.65,126.51,0.1]
[1720139983152,6.4085,126.65,126.52,19.759]
[1720139983153,7.8978,126.62,126.52,19.759]
[1720139983351,6.4085,126.65,126.52,19.759]
[1720139983555,19.7437,126.63,126.51,0.1]
[1720139983765,15.0,126.59,126.51,0.1]
[1720139983925,19.7485,126.6,126.51,0.1]
[1720139984129,0.17,126.59,126.51,0.1]
[1720139984331,7.9038,126.52,126.51,0.1]
[1720139984553,15.0,126.57,126.51,0.1]
[1720139984738,7.9048,126.51,126.43,7.9093]
[1720139985048,0.17,126.56,126.41,0.1]
[1720139985247,15.0,126.53,126.41,0.1]
[1720139985586,7.9038,126.52,126.43,7.9089]
[1720139985734,7.9072,126.47,126.41,0.1]
[1720139985932,7.9089,126.44,126.41,0.1]
[1720139986131,179.26,126.54,126.41,0.1]
[1720139986132,15.0,126.47,126.41,0.1]
[1720139986349,7.9101,126.42,126.41,0.1]
[1720139986866,19.7758,126.42,126.31,0.1]
[1720139987035,59.4058,126.42,126.31,0.1]
[1720139987236,59.4058,126.42,126.31,19.8922]
[1720139987237,39.63,126.42,126.31,19.8922]
[1720139987464,47.5367,126.48,126.39,7.9117]
[1720139987665,0.17,126.47,126.37,19.7824]
[1720139987841,19.7633,126.5,126.31,0.1]
[1720139988168,19.7633,126.5,126.35,19.7847]
[1720139988169,0.17,126.49,126.35,19.7847]
[1720139988348,26.2078,126.51,126.32,39.5803]
[1720139988743,119.7658,126.49,126.34,19.7876]
[1720139988950,39.63,126.47,126.34,19.7876]
[1720139989171,7.9101,126.42,126.34,27.7024]
[1720139989386,7.9101,126.42,126.31,0.1]
[1720139989387,19.77,126.46,126.31,0.1]
[1720139989546,45.0,126.45,126.31,0.1]
[1720139989752,39.63,126.47,126.31,0.1]
[1720139989976,7.9084,126.45,126.37,7.9126]
[1720139990154,6.4454,126.51,126.31,15.1]
[1720139990358,14.35,126.51,126.42,27.6844]
[1720139990558,6.4454,126.51,126.42,19.7749]
[1720139990859,7.9033,126.53,126.45,19.7704]
[1720139991270,7.9026,126.54,126.45,19.7704]
[1720139991488,7.9021,126.55,126.45,19.7704]
[1720139991777,7.9033,126.53,126.45,19.7704]
[1720139991981,26.0344,126.58,126.45,19.7704]
[1720139992155,6.284,126.58,126.5,7.9046]
[1720139992355,19.7446,126.62,126.48,19.7651]
[1720139992556,15.0483,126.64,126.5,19.7617]
[1720139992750,54.531,126.64,126.5,19.7617]
[1720139993108,7.8977,126.62,126.52,19.7585]
[1720139993281,6.284,126.72,126.53,0.17]
[1720139993589,7.8954,126.66,126.58,7.8995]
[1720139993753,7.895,126.67,126.58,7.8995]
[1720139993950,7.8939,126.68,126.6,7.8983]
[1720139994150,7.8924,126.71,126.63,7.8964]
[1720139994356,6.284,126.72,126.53,0.17]
[1720139994357,6.284,126.72,126.62,19.7438]
[1720139994590,7.9935,126.69,126.62,19.7438]
[1720139994778,0.1,126.69,126.54,39.63]
[1720139995082,0.1,126.69,126.63,19.7411]
[1720139995455,7.9933,126.69,126.63,19.7411]
[1720139995665,0.1,126.69,126.64,7.8962]
[1720139995866,0.1,126.69,126.63,19.7411]
[1720139996273,0.1,126.69,126.59,39.4966]
[1720139996274,0.1,126.69,126.66,19.7371]
[1720139996559,0.1,126.69,126.68,7.8939]
[1720139996756,0.1,126.79,126.69,19.7326]
[1720139997261,0.1,126.79,126.72,7.8911]
[1720139997262,7.9872,126.79,126.72,7.8911]
[1720139997463,7.8878,126.78,126.69,19.7326]
[1720139997873,0.1,126.79,126.7,0.17]
[1720139998059,0.1,126.79,126.69,19.7326]
[1720139998274,0.1,126.79,126.63,45.9168]
[1720139998463,0.1,126.79,126.66,19.7378]
[1720139998664,0.1,126.79,126.69,19.7324]
[1720139999071,0.1,126.79,126.63,39.4843]
[1720139999278,0.1,126.79,126.69,19.7327]
[1720139999486,0.1,126.79,126.71,19.7291]
[1720139999664,0.1,126.79,126.66,7.8946]
[1720139999863,0.1,126.79,126.69,7.8932]
[1720140000155,0.1,126.79,126.62,39.63]
[1720140000362,15.1,126.79,126.64,19.7404]
[1720140000559,15.1,126.79,126.66,19.7366]
[1720140000762,0.17,126.78,126.63,39.4849]
[1720140000973,0.1,126.79,126.61,39.63]
[1720140001186,0.1,126.79,126.66,7.895]
[1720140001370,0.1,126.79,126.66,7.8951]
[1720140001686,19.7195,126.78,126.64,19.7404]
[1720140001894,19.7195,126.78,126.56,6.4325]
[1720140001895,19.7356,126.68,126.56,19.7523]
[1720140002192,39.63,126.7,126.54,39.5114]
[1720140002374,15.0,126.76,126.54,126.6514]
[1720140002576,29.3679,126.77,126.7,7.8924]
[1720140002890,0.1,126.79,126.7,19.7302]
[1720140003094,7.8879,126.78,126.71,7.8919]
[1720140003279,0.1,126.79,126.71,7.8919]
[1720140003466,0.1,126.79,126.7,19.7302]
[1720140003467,0.1,126.79,126.73,7.8907]
[1720140003790,0.1,126.79,126.69,47.51]
[1720140003997,0.1,126.79,126.75,7.8894]
[1720140004309,0.1,126.79,126.78,7.8876]
[1720140004514,0.1,126.79,126.78,8.0576]
[1720140004806,0.1,126.89,126.84,19.7089]
[1720140005011,7.8815,126.88,126.8,7.8858]
[1720140005196,0.1,126.89,126.82,7.8851]
[1720140005393,0.1,126.89,126.78,0.17]
[1720140005610,0.1,126.89,126.88,7.8814]
[1720140005806,0.1,126.89,126.86,19.7055]
[1720140006005,0.1,126.89,126.81,39.4269]
[1720140006204,0.1,126.89,126.88,7.8814]
[1720140006418,0.1,126.89,126.88,27.585]
[1720140006595,0.1,126.89,126.82,0.17]
[1720140006905,0.1,126.89,126.8,7.8858]
[1720140007107,0.1,126.89,126.76,39.4425]
[1720140007284,0.1,126.89,126.76,86.9525]
[1720140007486,0.1,126.89,126.87,19.7047]
[1720140007691,0.1,126.89,126.83,19.7099]
[1720140007888,0.1,126.89,126.77,47.51]
[1720140008092,0.1,126.89,126.88,7.8814]
[1720140008295,0.1,126.89,126.88,8.0514]
[1720140008687,0.1,126.89,126.88,7.8814]
[1720140009121,0.1,126.99,126.96,19.6902]
[1720140009296,0.1,126.99,126.88,19.7033]
[1720140009818,0.1,126.99,126.81,27.018]
[1720140009819,7.8822,126.87,126.77,7.8878]
[1720140009994,7.8827,126.86,126.77,7.8879]
[1720140010192,100.0,126.92,126.78,19.718]
[1720140010502,139.63,126.84,126.66,19.7371]
[1720140010701,139.63,126.84,126.61,6.5672]
[1720140010702,7.8846,126.83,126.73,27.6167]
[1720140011016,45.17,126.83,126.62,100.0]
[1720140011217,7.8896,126.75,126.61,6.5672]
[1720140011422,39.63,126.8,126.68,7.8938]
[1720140011596,7.8854,126.82,126.73,7.8906]
[1720140011916,0.17,126.81,126.67,19.7358]
[1720140012131,6.4243,126.79,126.63,19.7417]
[1720140012306,45.17,126.78,126.63,19.7417]
[1720140012508,7.8883,126.77,126.66,19.7369]
[1720140012703,6.4243,126.79,126.69,19.7323]
[1720140012918,6.4243,126.85,126.65,47.51]
[1720140013241,100.0,126.8,126.61,0.1]
[1720140013519,54.63,126.76,126.64,7.896]
[1720140013723,7.8919,126.72,126.64,7.8963]
[1720140013903,7.8914,126.73,126.63,19.7419]
[1720140014106,45.0,126.72,126.61,0.1]
[1720140014408,7.8961,126.65,126.61,0.1]
[1720140014610,39.63,126.69,126.61,0.1]
[1720140014804,7.8964,126.64,126.61,0.1]
[1720140015122,0.17,126.68,126.61,0.1]
[1720140015419,39.63,126.65,126.53,19.7569]
[1720140015719,59.37,126.65,126.51,0.1]
[1720140015898,39.63,126.65,126.51,0.1]
[1720140016095,0.17,126.64,126.51,0.1]
[1720140016292,45.17,126.64,126.51,0.1]
[1720140016519,7.9003,126.58,126.51,0.1]
[1720140016724,64.9112,126.64,126.51,0.1]
[1720140016904,45.17,126.64,126.51,0.1]
[1720140017109,19.7451,126.62,126.51,0.1]
[1720140017311,45.0,126.64,126.51,27.7645]
[1720140017526,7.9,126.59,126.51,27.7645]
[1720140017832,39.63,126.69,126.6,7.8984]
[1720140018007,140.9772,126.71,126.59,7.8994]
[1720140018200,140.9772,126.71,126.51,0.1]
[1720140018201,139.63,126.68,126.51,0.1]
[1720140018403,19.7442,126.62,126.51,0.1]
[1720140019097,39.63,126.64,126.51,0.1]
[1720140019305,7.896,126.65,126.58,7.9]
[1720140019510,39.63,126.66,126.51,0.1]
[1720140019723,39.63,126.66,126.59,19.7483]
[1720140020028,39.63,126.69,126.51,0.1]
[1720140020229,39.63,126.69,126.58,19.7501]
[1720140020534,106.2459,126.71,126.56,0.17]
[1720140020825,6.2459,126.71,126.61,19.7448]
[1720140021033,7.8933,126.69,126.59,19.7478]
[1720140021331,6.2459,126.71,126.55,0.17]
[1720140021332,6.2459,126.71,126.55,19.9236]
[1720140021496,6.2459,126.71,126.59,19.7477]
[1720140021497,7.8948,126.67,126.59,19.7477]
[1720140021694,7.895,126.67,126.6,0.17]
[1720140022006,59.3531,126.76,126.6,20.17]
[1720140022195,100.0,126.73,126.6,0.17]
[1720140022401,100.0,126.74,126.54,39.63]
[1720140022706,39.63,126.76,126.63,7.8965]
[1720140022707,7.8921,126.71,126.63,7.8965]
[1720140022909,45.7212,126.78,126.62,0.17]
[1720140023192,6.0912,126.78,126.66,19.7369]
[1720140023452,7.8878,126.78,126.71,7.8917]
[1720140023604,59.3399,126.84,126.67,0.17]
[1720140023930,139.4259,126.82,126.67,0.17]
[1720140024221,7.887,126.8,126.71,19.7298]
[1720140024466,7.884,126.84,126.76,7.8883]
[1720140024640,16.127,126.87,126.72,0.17]
[1720140024797,0.1,126.99,126.78,6.0994]
[1720140024999,0.1,126.99,126.88,7.8814]
[1720140025214,0.1,126.99,126.88,0.17]
[1720140025417,7.876,126.97,126.88,0.17]
[1720140025619,0.1,126.99,126.81,54.4281]
[1720140025932,0.1,126.99,126.89,7.8807]
[1720140026102,0.1,126.99,126.82,20.17]
[1720140026309,0.1,126.99,126.89,19.7019]
[1720140026523,0.1,126.99,126.95,19.6924]
[1720140027026,0.1,126.99,126.97,7.8755]
[1720140027228,0.1,126.99,126.95,19.6924]
[1720140027598,0.1,126.99,126.92,7.8788]
[1720140027803,0.1,126.99,126.92,27.5744]
[1720140028025,100.21044068,127.04,126.88,0.17]
[1720140028217,100.21044068,127.04,126.79,47.51]
[1720140028218,100.0,127.0,126.79,47.51]
[1720140028424,46.0794,127.01,126.81,86.9381]
[1720140028631,65.7634,127.01,126.88,19.7034]
[1720140028808,19.7037,126.88,126.76,19.7215]
[1720140029131,39.63,126.92,126.75,19.7236]
[1720140029132,139.63,126.92,126.75,19.7236]
[1720140029341,7.881,126.89,126.71,86.9695]
[1720140029632,7.8834,126.85,126.78,7.8875]
[1720140029828,19.7006,126.9,126.77,19.7195]
[1720140030004,54.63,126.92,126.8,19.7152]
[1720140030206,45.0,126.94,126.75,47.51]
[1720140030412,100.0,127.04,126.92,19.696]
[1720140030646,39.63,127.04,126.84,39.63]
[1720140030841,6.4494,127.01,126.84,39.63]
[1720140031054,106.4494,127.01,126.84,39.4187]
[1720140031231,39.63,127.0,126.86,7.8826]
[1720140031431,7.8802,126.9,126.78,39.63]
[1720140031632,7.8809,126.89,126.81,19.7143]
[1720140031969,39.63,126.92,126.72,56.0704]
[1720140032135,100.0,126.91,126.78,19.7191]
[1720140032331,100.0,126.91,126.71,0.1]
[1720140032332,45.17,126.9,126.71,0.1]
[1720140032536,7.886,126.81,126.71,0.1]
[1720140032841,60.17,126.9,126.72,27.6191]
[1720140032842,100.0,126.85,126.72,27.6191]
[1720140033033,45.0,126.84,126.72,27.6196]
[1720140033229,7.887,126.79,126.72,19.7283]
[1720140033542,7.8876,126.79,126.71,7.9919]
[1720140033753,0.17,126.83,126.71,19.8299]
[1720140033938,0.17,126.83,126.73,19.7256]
[1720140034124,39.63,126.85,126.74,7.8901]
[1720140034447,7.8789,126.93,126.86,7.8823]
[1720140034743,7.8789,126.93,126.71,87.24]
[1720140034744,6.2416,126.94,126.81,19.7131]
[1720140034945,7.8812,126.89,126.81,19.7131]
[1720140035127,6.2416,126.94,126.81,19.7131]
[1720140035128,7.8801,126.91,126.83,7.8845]
[1720140035332,25.9359,126.94,126.81,19.7131]
[1720140035333,6.2416,126.94,126.81,19.7131]
[1720140035633,6.2416,126.94,126.75,39.63]
[1720140035829,6.2416,126.94,126.71,39.73]
[1720140035830,7.8852,126.82,126.71,39.73]
[1720140036139,7.884,126.84,126.75,19.7224]
[1720140036342,6.2416,126.94,126.74,39.4493]
[1720140036546,100.0,126.92,126.74,79.0793]
[1720140036873,100.0,126.92,126.71,0.1]
[1720140037021,7.8822,126.87,126.79,7.8869]
[1720140037223,39.63,126.92,126.83,7.8845]
[1720140037457,6.2416,126.94,126.78,39.4371]
[1720140037753,15.4383,126.95,126.85,7.8833]
[1720140037927,154.63,126.98,126.8,19.7155]
[1720140038265,7.8802,126.9,126.81,0.17]
[1720140038465,59.3193,126.98,126.82,39.424]
[1720140038664,100.0,127.0,126.86,19.7054]
[1720140038957,19.6878,126.99,126.87,7.882]
[1720140039167,7.8801,126.91,126.83,8.0539]
[1720140039338,100.0,126.94,126.78,6.4774]
[1720140039538,19.6999,126.91,126.78,19.7183]
[1720140039763,7.8836,126.85,126.78,19.7183]
[1720140039934,19.7031,126.89,126.78,7.8875]
[1720140040130,19.7062,126.87,126.75,19.7234]
[1720140040339,0.17,126.86,126.71,26.1941]
[1720140040557,7.8852,126.82,126.75,7.8895]
[1720140041255,54.8,126.86,126.73,19.726]
[1720140041458,100.0,126.85,126.73,19.726]
[1720140041667,19.7107,126.84,126.73,19.726]
[1720140041839,0.17,126.83,126.73,19.726]
[1720140042034,0.17,126.83,126.71,0.1]
[1720140042035,7.887,126.79,126.72,7.8912]
[1720140042359,0.17,126.83,126.71,0.1]
[1720140042572,6.5019,126.87,126.73,39.4538]
[1720140042733,6.5019,126.87,126.77,7.8882]
[1720140042734,7.8845,126.84,126.77,7.8882]
[1720140043068,100.0,126.86,126.72,19.7282]
[1720140043373,45.0,126.85,126.76,19.7214]
[1720140043545,19.7091,126.85,126.72,19.7269]
[1720140043757,7.8869,126.8,126.73,7.8906]
[1720140044147,100.0,126.85,126.71,0.1]
[1720140044445,19.7154,126.81,126.71,0.1]
[1720140044657,0.17,126.8,126.71,0.1]
[1720140044851,0.17,126.8,126.71,7.9919]
[1720140045049,19.7154,126.81,126.71,7.9919]
[1720140045050,7.8894,126.76,126.71,0.1]
[1720140045259,79.0532,126.83,126.71,0.1]
[1720140045550,7.8871,126.79,126.72,7.8908]
[1720140045758,7.8889,126.76,126.71,0.1]
[1720140046076,7.8881,126.78,126.71,7.9917]
[1720140046373,39.63,126.83,126.71,7.9917]
[1720140046374,7.8859,126.81,126.71,0.1]
[1720140046544,19.7086,126.85,126.74,7.8897]
[1720140046865,19.7125,126.83,126.72,19.897]
[1720140047068,19.7125,126.83,126.72,7.891]
[1720140047255,7.8859,126.81,126.71,0.1]
[1720140047461,19.7076,126.86,126.73,19.8959]
[1720140047665,7.8848,126.83,126.73,0.17]
[1720140047836,7.8815,126.88,126.81,7.8853]
[1720140048039,106.5162,126.94,126.81,19.7137]
[1720140048040,19.6963,126.93,126.81,19.7137]
[1720140048335,7.8815,126.88,126.81,27.5989]
[1720140048556,7.8815,126.88,126.81,19.7137]
[1720140048771,7.8815,126.88,126.81,27.599]
[1720140048952,6.5162,126.94,126.76,86.9545]
[1720140049274,15.9004,126.96,126.87,19.7046]
[1720140049564,19.6887,126.98,126.81,47.51]
[1720140049788,7.8771,126.95,126.88,27.5839]
[1720140049941,7.8785,126.93,126.86,7.882]
[1720140050139,19.694,126.95,126.82,19.8824]
[1720140050367,7.8797,126.91,126.82,0.17]
[1720140050589,7.8796,126.91,126.82,0.17]
[1720140050874,7.8795,126.92,126.84,7.8835]
[1720140051162,19.6981,126.92,126.79,19.7164]
[1720140051366,7.8805,126.9,126.83,7.8845]
[1720140051558,7.8826,126.87,126.76,54.8488]
[1720140051949,7.8826,126.87,126.8,7.8864]
[1720140052258,0.17,126.88,126.76,39.4439]
[1720140052462,0.17,126.88,126.8,19.7154]
[1720140052979,0.17,126.88,126.75,7.889]
[1720140052980,7.8853,126.82,126.75,7.889]
[1720140053145,7.8853,126.82,126.71,0.1]
[1720140053146,19.7125,126.83,126.74,7.89]
[1720140053463,7.8868,126.8,126.73,27.6167]
[1720140053768,19.7105,126.84,126.74,7.8901]
[1720140054077,59.1177,126.87,126.76,7.8887]
[1720140054245,7.8864,126.8,126.74,7.8895]
[1720140054445,7.8864,126.8,126.74,7.8899]
[1720140054651,7.8866,126.8,126.73,7.8903]
[1720140054849,7.8873,126.79,126.72,27.6191]
[1720140055051,19.877,126.86,126.72,19.7279]
[1720140055391,7.8841,126.84,126.77,7.8877]
[1720140055564,7.8854,126.82,126.76,27.6103]
[1720140055771,7.8854,126.82,126.76,19.7215]
[1720140056351,19.7093,126.85,126.76,7.8888]
[1720140056668,7.8864,126.8,126.73,7.8902]
[1720140056886,100.0,126.86,126.71,0.1]
[1720140057053,84.5893,126.85,126.71,0.1]
[1720140057371,84.5893,126.85,126.73,19.726]
[1720140057576,7.8872,126.79,126.73,27.6167]
[1720140057878,99.5893,126.85,126.71,0.1]
[1720140057879,19.7157,126.81,126.71,0.1]
[1720140058062,45.0,126.8,126.71,0.1]
[1720140058368,0.17,126.79,126.71,19.8292]
[1720140058871,7.8901,126.75,126.71,0.1]
[1720140059288,7.8888,126.77,126.71,7.9919]
[1720140059455,0.17,126.79,126.71,0.1]
[1720140059456,7.8895,126.75,126.71,0.1]
[1720140059845,19.8882,126.79,126.71,0.1]
[1720140060047,7.8914,126.72,126.71,0.1]
[1720140060255,7.8914,126.72,126.71,0.0001]
[1720140060558,45.17,126.72,126.61,0.1]
[1720140060768,7.8965,126.64,126.61,0.1]
[1720140060955,19.7337,126.69,126.61,0.1]
[1720140061153,0.17,126.71,126.61,0.1]
[1720140061490,0.17,126.71,126.51,0.1]
[1720140061491,100.0,126.68,126.51,0.1]
[1720140061654,7.9001,126.59,126.51,8.004]
[1720140062009,39.63,126.69,126.51,0.1]
[1720140062273,45.17,126.68,126.51,0.1]
[1720140062470,7.8972,126.63,126.56,7.9013]
[1720140062675,0.17,126.68,126.57,19.7509]
[1720140062852,25.7994,126.75,126.63,19.7412]
[1720140063051,7.8928,126.7,126.63,27.6382]
[1720140063355,6.0748,126.75,126.54,100.0]
[1720140063557,6.0748,126.75,126.53,139.63]
[1720140063558,7.8911,126.73,126.67,7.8945]
[1720140063772,26.1961,126.83,126.68,39.4685]
[1720140063979,26.1961,126.83,126.68,39.6385]
[1720140064173,7.892,126.71,126.65,7.8957]
[1720140064383,106.4835,126.83,126.66,0.17]